bitfinex-derivatives/quotes_ETHF0:USTF0_20251107
["timestamp","ask_amount","ask_price","bid_price","bid_amount"]
[1762531334133,3.21028773,3297.4,3297.0,0.00690412]
[1762531334341,0.4917,3297.2,3297.0,0.00690412]
[1762531334949,0.4918,3296.6,3295.7,3.2078]
[1762531335244,3.2078,3297.1,3296.8,0.2819]
[1762531335442,0.00248773,3297.4,3297.3,0.49168]
[1762531335636,0.00248773,3297.4,3297.2,0.49168]
[1762531336041,3.2078,3297.9,3297.8,0.4916]
[1762531336242,3.2078,3298.4,3298.3,0.49153]
[1762531336640,3.2078,3298.4,3297.6,0.2819]
[1762531336839,3.2078,3297.9,3297.8,0.4916]
[1762531337041,0.00329067,3297.9,3297.8,0.4916]
[1762531337443,3.70268067,3297.9,3297.6,0.2819]
[1762531337649,3.70268067,3297.9,3297.8,0.4916]
[1762531337843,0.00329067,3297.9,3297.8,0.4916]
[1762531338145,0.00329067,3297.9,3297.6,0.2819]
[1762531338146,3.2078,3298.3,3298.2,0.49154]
[1762531338348,3.2078,3298.7,3298.5,0.49149]
[1762531338648,3.2078,3298.7,3298.6,0.49148]
[1762531338946,3.2078,3298.7,3298.4,0.2819]
[1762531338947,0.49149,3298.6,3298.5,0.4915]
[1762531339142,0.00391475,3298.6,3298.5,0.4915]
[1762531339342,0.49539475,3298.6,3298.5,0.4915]
[1762531339741,3.2078,3301.1,3300.0,0.2819]
[1762531339937,2.13554993,3302.1,3300.0,0.2819]
[1762531339938,1.07553459,3302.1,3301.1,0.4911]
[1762531340142,0.49101,3301.8,3301.2,0.49108]
[1762531340343,0.31681131,3303.3,3300.8,0.2819]
[1762531340545,0.491,3301.9,3301.5,0.49104]
[1762531340741,0.49104,3301.6,3301.5,0.00384592]
[1762531340946,0.49109,3301.3,3300.8,0.2819]
[1762531341143,8.00320598,3301.9,3300.8,0.2819]
[1762531341144,0.00320598,3301.9,3300.8,0.2819]
[1762531341345,3.6989,3301.2,3300.8,0.2819]
[1762531341741,0.49112,3301.1,3300.8,0.2819]
[1762531341941,0.49112,3301.1,3300.8,0.28576534]
[1762531342147,3.6989,3301.2,3300.8,0.28576534]
[1762531342851,3.2078,3301.7,3301.5,0.49104]
[1762531343248,0.00320598,3301.9,3301.8,0.49101]
[1762531343549,0.00320598,3301.9,3301.7,0.49102]
[1762531343945,0.00320598,3301.9,3301.3,3.2078]
[1762531344250,0.00320598,3301.9,3301.7,0.49101]
[1762531344437,0.00320598,3301.9,3301.5,0.49105]
[1762531344644,0.00320598,3301.9,3301.3,3.2078]
[1762531345150,0.49101,3301.8,3301.5,0.49105]
[1762531345346,0.00320598,3301.9,3301.7,0.49101]
[1762531346048,0.00320598,3301.9,3301.8,3.2078]
[1762531347943,3.2078,3302.9,3301.8,3.2078]
[1762531348150,3.2078,3302.9,3302.7,0.49087]
[1762531348748,3.2078,3303.5,3302.2,3.2078]
[1762531348948,0.49078,3303.4,3303.0,3.2078]
[1762531349147,0.00346319,3303.5,3303.3,0.49077]
[1762531349349,0.00801077,3303.5,3303.3,0.49377383]
[1762531350145,0.00801077,3303.5,3303.3,0.00300383]
[1762531350349,3.21581077,3303.5,3303.3,0.00300383]
[1762531350554,3.21581077,3303.5,3303.3,0.49377383]
[1762531350755,0.49877077,3303.5,3303.3,0.49377383]
[1762531350949,0.49877077,3303.5,3303.3,0.00300383]
[1762531351448,0.49087,3302.7,3302.5,0.00454758]
[1762531351848,3.2078,3302.9,3302.5,0.00454758]
[1762531352249,0.49087,3302.7,3302.5,0.00454758]
[1762531352448,3.2078,3302.9,3301.4,3.2078]
[1762531352449,0.49102,3301.7,3301.4,3.2078]
[1762531352653,0.49105,3301.5,3301.4,3.2078]
[1762531352944,3.2078,3301.9,3300.8,3.4897]
[1762531353146,0.49108,3301.4,3301.3,0.49108]
[1762531353452,0.49108,3301.4,3300.8,3.98086]
[1762531353453,0.49113,3301.0,3300.8,3.98086]
[1762531353756,0.49459926,3301.0,3300.8,3.98402591]
[1762531353963,0.49459926,3301.0,3300.8,3.21096591]
[1762531354151,0.00346926,3301.0,3300.8,3.70211591]
[1762531355061,0.00346926,3301.0,3300.8,3.21096591]
[1762531355459,0.00346926,3301.0,3300.8,3.70211591]
[1762531355858,0.00346926,3301.0,3300.8,3.21096591]
[1762531356054,0.49459926,3301.0,3300.8,3.21096591]
[1762531356356,0.49459926,3301.0,3300.8,3.70211591]
[1762531357064,0.49459926,3301.0,3300.8,3.21096591]
[1762531358155,0.00346926,3301.0,3300.8,4.09981591]
[1762531358356,0.4911,3301.2,3300.9,0.49114]
[1762531358663,0.49113,3301.0,3300.8,3.60866591]
[1762531358963,0.4911,3301.2,3300.8,3.60866591]
[1762531359156,3.2078,3301.6,3300.8,3.60866591]
[1762531359462,0.00454758,3301.5,3301.4,0.49107]
[1762531359671,0.00454758,3301.5,3301.3,3.2078]
[1762531359857,0.49107,3301.4,3301.1,0.4911]
[1762531360160,0.49111,3301.2,3301.0,0.49113]
[1762531360356,0.49111,3301.1,3301.0,0.49113]
[1762531360558,0.49112,3301.1,3301.0,0.49112]
[1762531360759,3.21234758,3301.5,3300.8,3.60866591]
[1762531360760,0.49108,3301.3,3301.2,0.49108]
[1762531361050,0.49108,3301.3,3300.8,3.60866591]
[1762531361051,0.49107,3301.4,3301.3,0.49108]
[1762531361466,0.00454758,3301.5,3301.4,0.49107]
[1762531362660,4.758e-05,3301.5,3301.4,0.49107]
[1762531363763,4.758e-05,3301.5,3301.2,3.2078]
[1762531363951,3.2078,3302.5,3301.6,0.3977]
[1762531364152,0.49088,3302.7,3302.6,0.49088]
[1762531364363,3.2078,3302.9,3302.4,0.3977]
[1762531364659,0.49114,3300.9,3300.8,0.40086591]
[1762531364861,8.0,3302.8,3300.6,3.2078]
[1762531364862,0.49117,3300.7,3300.6,3.2078]
[1762531365058,3.2078,3300.7,3300.3,0.00454758]
[1762531365256,3.2078,3300.7,3299.8,3.2078]
[1762531365257,3.2078,3300.6,3298.9,1.06908502]
[1762531365462,0.00453301,3301.0,3298.7,1.06908502]
[1762531365663,0.49125,3300.2,3298.7,1.06908502]
[1762531365964,0.49125,3300.2,3300.0,0.3977]
[1762531365965,0.00299425,3300.2,3300.0,0.3977]
[1762531366153,0.00299425,3300.2,3300.0,0.88897]
[1762531366358,0.49424425,3300.2,3300.0,0.3977]
[1762531366856,0.00299425,3300.2,3299.8,0.00454758]
[1762531367057,0.00299425,3300.2,3300.0,0.88897]
[1762531367264,0.49424425,3300.2,3300.0,0.3977]
[1762531367659,0.00299425,3300.2,3300.0,0.88897]
[1762531367963,0.49424425,3300.2,3300.0,0.88897]
[1762531368163,0.49117,3300.7,3300.1,3.2078]
[1762531368365,3.2078,3300.5,3300.1,0.49126]
[1762531368560,3.2078,3300.5,3300.0,0.3977]
[1762531368561,0.49126,3300.2,3300.0,0.3977]
[1762531368761,0.49123,3300.4,3300.2,0.49124]
[1762531369072,0.49129,3299.9,3299.8,0.00454758]
[1762531369762,0.49138,3299.3,3299.2,0.00347422]
[1762531369962,0.49148,3298.7,3298.5,3.2078]
[1762531370269,3.2078,3298.8,3298.0,3.2078]
[1762531370467,0.49151,3298.5,3298.1,0.49156]
[1762531370663,0.4915,3298.6,3298.0,3.2078]
[1762531370966,0.49152,3298.4,3298.2,0.49153]
[1762531371165,0.49603758,3298.6,3298.4,0.4915]
[1762531371364,0.49155,3298.2,3298.0,3.21460113]
[1762531371565,3.69935,3298.2,3298.0,0.00680113]
[1762531371970,0.49155,3298.2,3298.0,0.00680113]
[1762531373064,3.21234758,3298.6,3298.0,0.00680113]
[1762531373762,0.00454758,3298.6,3298.0,0.00680113]
[1762531373962,0.49153,3298.4,3298.2,0.49154]
[1762531374365,0.00454758,3298.6,3298.4,0.86171]
[1762531375472,0.49603758,3298.6,3298.4,0.3702]
[1762531375863,0.49603758,3298.6,3298.4,0.86171]
[1762531376367,0.49603758,3298.6,3298.0,0.00680113]
[1762531376572,0.49162,3297.7,3297.6,0.3977]
[1762531376868,3.2078,3298.1,3297.0,3.2078]
[1762531377373,0.49165,3297.6,3297.4,0.49166]
[1762531377680,0.49167,3297.4,3297.2,0.49622758]
[1762531377858,0.49167,3297.4,3297.2,0.49880979]
[1762531378264,0.49167,3297.4,3297.2,0.00712979]
[1762531378665,3.21083399,3297.6,3297.4,0.49165]
[1762531378972,0.49166,3297.4,3297.2,0.00712979]
[1762531379970,0.49166,3297.4,3297.3,0.49168]
[1762531380174,0.49168,3297.3,3297.2,0.49881979]
[1762531380364,3.21083399,3297.6,3297.5,0.49165]
[1762531380563,0.00303399,3297.6,3297.5,0.49165]
[1762531380969,0.49467399,3297.6,3297.4,3.2078]
[1762531381164,0.00303399,3297.6,3297.5,0.49165]
[1762531381676,0.00303399,3297.6,3297.2,3.21492979]
[1762531381971,4.28333459,3299.9,3299.8,0.49131]
[1762531382162,4.28333459,3299.9,3297.6,0.3586]
[1762531382163,0.31568136,3299.9,3299.6,3.2078]
[1762531382369,0.1075,3300.8,3299.1,3.2078]
[1762531382370,3.2078,3300.1,3299.1,3.2078]
[1762531382568,0.49141,3299.1,3298.7,3.2078]
[1762531382873,0.49145,3298.8,3298.7,3.2078]
[1762531383168,0.49145,3298.8,3298.7,0.00262036]
[1762531383374,0.49145,3298.8,3298.7,2.036e-05]
[1762531384273,0.49157,3298.0,3297.9,3.2078]
[1762531385177,0.49157,3298.0,3297.9,0.00365139]
[1762531385380,0.49155,3298.2,3298.1,0.49155]
[1762531385772,0.49156,3298.1,3297.9,3.70302139]
[1762531386275,0.49154,3298.3,3298.1,0.49155]
[1762531386578,0.49156,3298.1,3297.9,3.21145139]
[1762531386766,0.49157,3298.0,3297.9,3.70304139]
[1762531386970,0.49156,3298.2,3298.1,0.49156]
[1762531387178,0.49153,3298.4,3298.3,0.49152]
[1762531387568,0.49157,3298.0,3297.9,3.21145139]
[1762531389174,0.49157,3298.0,3297.9,0.00365139]
[1762531389881,0.49157,3298.0,3297.9,0.49524139]
[1762531390070,0.49153,3298.3,3298.2,0.49154]
[1762531390784,0.49156,3298.1,3298.0,0.49156]
[1762531390982,0.49154,3298.3,3298.2,0.49154]
[1762531391282,0.49151,3298.5,3298.4,0.3586]
[1762531391588,0.49157,3298.1,3297.9,3.21145139]
[1762531391879,0.49157,3298.0,3297.9,3.21145139]
[1762531392074,0.49153,3298.3,3298.2,0.49153]
[1762531392277,3.2078,3298.6,3297.9,3.21145139]
[1762531392581,0.49157,3298.0,3297.9,3.21145139]
[1762531392783,0.49153,3298.3,3298.2,0.49152]
[1762531393075,0.49151,3298.5,3298.4,0.3586]
[1762531393681,0.4915,3298.5,3298.4,0.85011]
[1762531393983,0.49148,3298.6,3298.5,0.4915]
[1762531394181,3.21483634,3299.1,3298.8,0.49145]
[1762531394377,0.49148,3298.8,3298.7,0.49147]
[1762531394677,0.49149,3298.7,3298.6,0.49148]
[1762531394982,0.49149,3298.7,3298.6,0.49146]
[1762531394983,0.49148,3298.7,3298.6,0.49146]
[1762531395182,0.4915,3298.5,3298.4,0.8501]
[1762531395383,0.49151,3298.4,3298.3,3.2078]
[1762531395685,0.49151,3298.4,3298.3,3.69933]
[1762531396174,0.49151,3298.4,3298.3,3.2078]
[1762531396375,0.49157,3298.1,3298.0,0.49157]
[1762531397179,0.49157,3298.0,3297.9,3.70304139]
[1762531398085,0.49157,3298.0,3297.9,3.21145139]
[1762531398580,0.49154,3298.3,3298.2,0.49154]
[1762531398778,0.31971867,3298.6,3297.9,3.21145139]
[1762531399081,0.81207668,3298.6,3298.5,0.4915]
[1762531399277,3.2078,3298.7,3298.1,1.06908502]
[1762531399483,0.49155,3298.3,3298.2,0.49154]
[1762531400087,0.49153,3298.3,3298.0,1.06908502]
[1762531400276,0.81210668,3298.4,3298.3,0.49151]
[1762531400478,0.49148,3298.6,3298.5,0.49148]
[1762531400684,0.49149,3298.7,3298.6,0.49147]
[1762531400989,0.49143,3299.0,3298.9,1.11972]
[1762531401178,0.81224075,3299.0,3298.9,1.11972]
[1762531401487,0.32081075,3299.0,3298.9,4.32752]
[1762531401684,3.2078,3299.5,3298.9,4.32752]
[1762531401685,0.32074332,3299.4,3299.3,0.49138]
[1762531401880,3.2078,3299.9,3299.8,0.84991]
[1762531402081,0.32096133,3299.9,3299.8,4.05771]
[1762531402278,0.49125,3300.2,3300.1,0.49126]
[1762531402588,0.32096133,3300.5,3300.3,0.49123]
[1762531402877,0.00393775,3300.5,3300.4,0.4912]
[1762531403086,0.00393775,3300.5,3300.3,3.2108857]
[1762531403483,0.00393775,3300.5,3300.3,3.7021157]
[1762531404389,0.00454758,3300.7,3300.6,0.49119]
[1762531404585,0.00454758,3300.7,3300.3,3.2108857]
[1762531404785,0.00454758,3300.7,3300.3,3.7021157]
[1762531404786,0.4912,3300.5,3300.3,3.7021157]
[1762531405085,0.4912,3300.5,3300.3,3.2108857]
[1762531405386,0.49401661,3300.5,3300.3,3.2108857]
[1762531405688,0.00454758,3300.7,3300.6,0.49119]
[1762531405890,0.49572758,3300.7,3300.4,0.49121]
[1762531406185,0.49571758,3300.7,3300.5,0.3523]
[1762531406383,0.49122,3300.4,3300.3,3.2108857]
[1762531406785,0.00372681,3300.4,3300.3,3.2108857]
[1762531406990,0.00372681,3300.4,3300.3,0.0030857]
[1762531408087,0.49113,3301.0,3300.9,0.49113]
[1762531408287,3.2078,3301.2,3300.5,0.3523]
[1762531408483,0.49117,3300.7,3300.5,0.3523]
[1762531409085,0.4936996,3300.7,3300.5,0.3523]
[1762531409292,0.49119,3300.6,3300.5,0.3523]
[1762531409588,0.49122,3300.4,3300.3,0.0030857]
[1762531411887,0.49122,3300.4,3299.4,3.2078]
[1762531411888,3.2078,3300.4,3299.4,3.2078]
[1762531412084,0.49139,3299.2,3299.1,0.3586]
[1762531412286,0.1059,3300.5,3298.6,3.2078]
[1762531412287,0.49147,3298.7,3298.6,3.2078]
[1762531412487,3.2078,3299.4,3298.7,0.49147]
[1762531412688,0.49147,3298.7,3298.6,3.2078]
[1762531412984,3.2078,3298.9,3298.2,3.2078]
[1762531413187,0.49153,3298.3,3298.2,3.2078]
[1762531413488,0.00248026,3298.3,3298.2,0.00323335]
[1762531414296,0.49157,3298.0,3297.9,0.00454758]
[1762531414992,0.49171,3297.1,3297.0,0.3523]
[1762531415492,0.49171,3297.1,3297.0,0.35507051]
[1762531415882,0.49171,3297.1,3297.0,0.00277051]
[1762531416089,11.69951,3297.1,3296.7,0.00454758]
[1762531416287,0.49189,3295.9,3295.8,3.2078]
[1762531416484,0.1059,3297.6,3295.8,3.2078]
[1762531416485,0.49187,3296.1,3295.8,3.69969]
[1762531416791,3.2078,3297.0,3295.8,3.2078]
[1762531416994,0.49182,3296.4,3296.0,0.3523]
[1762531417294,0.49185,3296.2,3296.0,0.35621822]
[1762531417496,0.49552923,3296.4,3296.0,0.35621822]
[1762531417692,0.49552923,3296.4,3296.2,3.2078]
[1762531417886,0.49186,3296.1,3296.0,0.00391822]
[1762531419698,0.49184,3296.3,3296.0,0.49577822]
[1762531419991,0.49184,3296.3,3294.8,1.08887276]
[1762531419992,0.49206,3294.8,3294.6,1.08887276]
[1762531420300,0.49211,3294.5,3293.7,3.2078]
[1762531420492,0.49211,3294.5,3293.9,0.49218]
[1762531420791,1.484,3295.6,3293.6,0.3523]
[1762531420998,3.2078,3294.6,3293.7,3.2078]
[1762531421192,0.49212,3294.4,3293.7,3.7]
[1762531421399,0.00454758,3294.4,3293.9,0.49218]
[1762531421694,0.23720443,3296.3,3293.7,3.21411349]
[1762531421695,3.2078,3295.4,3294.7,0.49205]
[1762531421896,0.49199,3295.2,3294.7,0.49205]
[1762531422101,3.2078,3295.4,3294.5,3.69988]
[1762531422292,3.2078,3295.0,3294.4,0.3865]
[1762531422492,0.49197,3295.3,3294.9,0.49203]
[1762531422709,3.21234758,3295.4,3294.5,3.69988]
[1762531422896,3.2078,3295.0,3294.4,0.3865]
[1762531423094,3.69989,3294.6,3294.1,0.49214]
[1762531423296,0.49211,3294.4,3294.0,3.2078]
[1762531423597,3.2078,3295.0,3294.4,0.3865]
[1762531423802,3.2078,3295.0,3294.4,3.5943]
[1762531423997,0.49198,3295.3,3294.8,0.49204]
[1762531424195,0.49199,3295.2,3294.8,0.49204]
[1762531424698,0.49202,3295.0,3294.6,0.49207]
[1762531424905,3.2078,3295.0,3294.4,0.3865]
[1762531425399,3.2078,3295.0,3294.8,0.49204]
[1762531425599,3.2078,3295.0,3294.6,0.49207]
[1762531425897,3.2078,3295.0,3294.4,0.3865]
[1762531425898,0.49209,3294.6,3294.4,3.2078]
[1762531426090,0.49215,3294.1,3293.7,0.00631349]
[1762531426295,3.2078,3293.8,3293.7,0.00631349]
[1762531426489,0.00275773,3293.8,3293.7,0.00631349]
[1762531427305,3.21055773,3293.8,3293.7,0.00631349]
[1762531428399,0.00275773,3293.8,3293.7,0.00631349]
[1762531428798,3.21055773,3293.8,3293.7,0.00631349]
[1762531428992,3.21055773,3293.8,3293.7,0.49852349]
[1762531429301,3.2078,3294.2,3293.9,0.49217]
[1762531429496,3.69994,3294.2,3293.7,0.00631349]
[1762531429690,3.2078,3294.2,3294.0,0.49216]
[1762531429894,3.2078,3294.6,3294.4,0.3865]
[1762531430099,3.2078,3294.6,3294.4,0.8786]
[1762531430297,3.21056211,3294.6,3294.4,0.8786]
[1762531431202,3.70264211,3294.6,3294.4,0.3865]
[1762531431403,3.21056211,3294.6,3294.4,0.3865]
[1762531431795,3.21056211,3294.6,3294.4,0.8786]
[1762531432299,3.21056211,3294.6,3293.7,0.00631349]
[1762531432499,3.69994,3294.2,3293.9,0.49217]
[1762531432701,3.2078,3294.2,3293.7,0.00631349]
[1762531432893,0.4921,3294.5,3294.4,0.3865]
[1762531433204,3.21056211,3294.6,3294.5,0.49209]
[1762531434501,0.00454758,3295.4,3295.0,0.492]
[1762531434704,3.2078,3295.1,3294.8,0.49204]
[1762531435003,3.2078,3295.1,3294.1,3.2078]
[1762531435202,0.49202,3295.0,3294.5,3.2078]
[1762531435506,0.00454758,3295.4,3295.0,0.492]
[1762531435707,0.49650758,3295.4,3295.2,0.49197]
[1762531435903,0.00707945,3295.4,3295.2,0.90457]
[1762531437408,0.00707945,3295.4,3295.2,8.90457]
[1762531437604,0.00707945,3295.4,3295.3,8.0]
[1762531437805,0.00707945,3295.4,3295.2,8.90457]
[1762531438006,3.2078,3296.4,3296.2,0.49183]
[1762531438307,0.49182,3296.3,3296.2,0.49182]
[1762531438804,3.2078,3296.4,3295.2,3.6204]
[1762531439005,0.49187,3296.0,3295.9,0.49188]
[1762531439201,0.00454758,3296.1,3295.5,0.00454758]
[1762531439908,0.49188,3295.9,3295.8,0.49189]
[1762531440104,3.2078,3296.0,3295.5,0.00454758]
[1762531440306,0.49191,3295.7,3295.6,0.49193]
[1762531440704,3.2078,3296.0,3295.8,0.49189]
[1762531441217,3.2078,3296.0,3295.9,0.49188]
[1762531441706,0.00454758,3296.1,3295.9,0.49188]
[1762531441910,0.49188,3295.9,3295.8,3.2078]
[1762531442210,0.00454758,3296.1,3295.6,0.49192]
[1762531442211,0.49191,3295.8,3295.6,0.49192]
[1762531442407,0.00454758,3296.1,3295.6,0.4126]
[1762531442808,0.49191,3295.8,3295.7,0.49191]
[1762531443208,0.49193,3295.6,3295.5,0.00454758]
[1762531443606,3.2078,3295.8,3295.6,0.90453]
[1762531444008,0.00454758,3296.1,3295.6,8.4126]
[1762531444208,0.00454758,3296.1,3296.0,0.49187]
[1762531444408,0.00454758,3296.1,3295.8,3.2078]
[1762531444714,0.49640758,3296.1,3295.8,3.2078]
[1762531444910,0.49188,3295.9,3295.8,3.2078]
[1762531445617,0.49189,3295.8,3295.7,0.49191]
[1762531445813,0.49192,3295.6,3295.5,0.00454758]
[1762531446304,3.21234758,3296.1,3295.8,0.49189]
[1762531446509,3.21234758,3296.1,3296.0,0.49186]
[1762531447317,3.21234758,3296.1,3295.6,3.6204]
[1762531447512,3.21234758,3296.1,3295.7,0.49191]
[1762531447513,0.49189,3295.9,3295.7,0.49191]
[1762531447712,3.70420758,3296.1,3295.9,0.49188]
[1762531448212,0.49189,3295.9,3295.6,3.6204]
[1762531448414,3.21234758,3296.1,3295.6,0.49192]
[1762531448717,0.49192,3295.6,3295.5,0.00454758]
[1762531450216,0.00454758,3296.1,3295.5,0.00454758]
[1762531450419,0.49192,3295.6,3295.5,0.00454758]
[1762531450615,0.3098986,3296.0,3295.7,0.49191]
[1762531450811,0.31444618,3296.1,3295.6,0.49191]
[1762531451318,0.49192,3295.6,3295.5,0.49648758]
[1762531451821,0.49192,3295.6,3295.5,0.00454758]
[1762531452822,1.19442,3295.6,3295.5,0.00454758]
[1762531453118,1.55512,3295.6,3295.5,0.00454758]
[1762531453313,0.49213,3294.2,3294.1,1.08887276]
[1762531453512,0.49213,3294.2,3293.2,5.89596619]
[1762531453513,3.2078,3294.2,3293.2,3.2078]
[1762531453713,0.49226,3293.3,3293.2,3.2078]
[1762531453917,0.49226,3293.3,3292.7,1.61131556]
[1762531453918,0.49233,3292.9,3292.7,3.2078]
[1762531454315,0.49251,3291.7,3291.5,1.08887276]
[1762531454511,0.49251,3291.7,3289.5,5.3697992]
[1762531454512,0.3607,3292.8,3290.9,1.08887276]
[1762531454719,0.3607,3292.8,3291.3,0.00455476]
[1762531455122,0.49241,3292.4,3291.3,0.00455476]
[1762531455314,0.00376838,3292.9,3291.3,0.00455476]
[1762531455315,0.49239,3292.5,3292.0,0.4126]
[1762531455521,0.49239,3292.5,3292.2,0.49242]
[1762531455825,3.2078,3292.8,3292.0,0.4126]
[1762531456135,0.00376838,3292.9,3292.7,0.49234]
[1762531456613,0.00376838,3292.9,3292.4,3.2078]
[1762531456813,0.00376838,3292.9,3292.7,0.49235]
[1762531457216,0.00376838,3292.9,3292.4,3.2078]
[1762531457727,0.00376838,3292.9,3291.9,3.2078]
[1762531457728,0.49243,3292.2,3291.9,3.2078]
[1762531457924,0.49246,3292.0,3291.9,3.2078]
[1762531458122,0.00376838,3292.9,3291.9,3.2078]
[1762531458123,0.49245,3292.1,3291.9,3.2078]
[1762531458326,0.49241,3292.4,3291.9,3.2078]
[1762531458521,0.49241,3292.4,3292.2,0.49242]
[1762531458823,0.00376838,3292.9,3292.4,0.49239]
[1762531459125,0.49234,3292.8,3292.5,0.49238]
[1762531459326,0.49234,3292.8,3292.6,0.49236]
[1762531459524,0.49235,3292.8,3292.3,3.2078]
[1762531459721,0.49238,3292.6,3292.3,3.7002]
[1762531459917,0.00376838,3292.9,3292.5,0.49238]
[1762531460122,0.00376838,3292.9,3292.3,3.7002]
[1762531460424,0.49236,3292.7,3292.4,0.4924]
[1762531460619,3.2078,3292.7,3291.8,3.2078]
[1762531460827,0.49237,3292.7,3292.4,0.49239]
[1762531461024,0.4924,3292.4,3292.2,3.2078]
[1762531461323,0.49245,3292.1,3291.9,0.49247]
[1762531461528,0.49247,3292.0,3291.7,3.2078]
[1762531461728,0.49246,3292.0,3291.8,0.49248]
[1762531462331,0.49246,3292.0,3291.7,3.2078]
[1762531462630,3.2078,3292.7,3291.7,3.2078]
[1762531462929,0.49241,3292.4,3292.2,0.49242]
[1762531464032,0.00376838,3292.9,3292.2,3.2078]
[1762531464329,0.00376838,3292.9,3292.7,0.49235]
[1762531464920,3.2078,3293.5,3293.3,0.49225]
[1762531465334,0.49221,3293.7,3293.6,0.49221]
[1762531465526,3.2078,3293.9,3293.4,0.49225]
[1762531465827,3.69999,3293.9,3293.7,0.49219]
[1762531466025,3.70244634,3293.9,3293.7,0.00245]
[1762531467027,0.49219,3293.8,3293.7,0.00245]
[1762531469729,8.49219,3293.8,3293.7,0.00245]
[1762531469929,0.49219,3293.8,3293.7,0.00245]
[1762531470132,0.00245634,3293.9,3293.8,0.49219]
[1762531470331,0.00455476,3294.1,3294.0,0.49216]
[1762531470925,3.2078,3294.7,3294.5,0.49208]
[1762531471224,3.2078,3294.7,3293.9,3.2078]
[1762531471225,3.21147112,3294.7,3293.9,3.2078]
[1762531471424,0.49209,3294.5,3294.3,0.49211]
[1762531471831,0.49213,3294.2,3294.0,0.49215]
[1762531472022,0.49211,3294.4,3294.1,0.49213]
[1762531472228,0.49215,3294.1,3293.9,3.2078]
[1762531472433,0.49215,3294.1,3293.9,3.69997]
[1762531472634,0.49215,3294.1,3293.9,0.49217]
[1762531472836,0.49214,3294.2,3294.0,0.49216]
[1762531473432,0.49214,3294.2,3293.9,3.2078]
[1762531473433,0.49216,3294.0,3293.9,3.2078]
[1762531473633,0.49213,3294.3,3293.9,3.2078]
[1762531473825,0.49209,3294.5,3293.9,3.2078]
[1762531474031,3.21602588,3294.7,3294.5,0.49208]
[1762531474335,0.00822588,3294.7,3294.5,0.49208]
[1762531474736,0.00822588,3294.7,3294.6,0.49207]
[1762531475630,3.2078,3296.0,3294.6,8.0]
[1762531475826,3.2078,3296.0,3295.1,3.2078]
[1762531476239,3.2078,3296.0,3295.2,0.49198]
[1762531476240,0.49195,3295.4,3295.2,0.49198]
[1762531476442,3.2078,3296.0,3295.1,3.2078]
[1762531476734,0.49189,3295.8,3295.2,0.00455476]
[1762531477038,0.49191,3295.7,3295.6,0.49191]
[1762531477440,0.00455476,3295.9,3295.5,3.2078]
[1762531477639,0.49196,3295.4,3295.2,0.00455476]
[1762531479739,0.49196,3295.3,3295.2,0.00455476]
[1762531480732,0.49196,3295.3,3295.2,0.49653476]
[1762531480936,0.49196,3295.3,3295.2,0.00455476]
[1762531481743,0.49195,3295.4,3295.3,0.49196]
[1762531481943,0.49196,3295.3,3295.2,0.00455476]
[1762531482442,0.00455476,3295.9,3295.2,0.00455476]
[1762531482640,0.49194,3295.6,3295.5,0.49193]
[1762531482943,0.49645476,3295.9,3295.8,0.49189]
[1762531483138,0.4919,3295.8,3295.7,0.49189]
[1762531483348,0.00455476,3295.9,3295.8,0.49189]
[1762531483944,0.00455476,3295.9,3295.8,3.69969]
[1762531484339,0.49642476,3295.9,3295.8,3.69969]
[1762531484648,0.00455476,3295.9,3295.8,3.69969]
[1762531484845,0.49642476,3295.9,3295.8,3.2078]
[1762531485350,1.05912476,3295.9,3295.8,3.2078]
[1762531485542,1.05912476,3295.9,3295.3,0.49196]
[1762531485543,0.49196,3295.4,3295.3,0.49196]
[1762531485742,0.49196,3295.3,3295.2,3.21235476]
[1762531486151,1.05466,3295.3,3295.2,0.00455476]
[1762531486550,0.00455476,3295.9,3295.4,0.49193]
[1762531486746,0.49196,3295.4,3295.3,1.08686]
[1762531486949,0.49642476,3295.9,3295.8,0.49189]
[1762531487248,0.00455476,3295.9,3295.2,3.21235476]
[1762531487451,0.49196,3295.3,3295.2,0.00455476]
[1762531488646,3.2078,3295.8,3295.3,0.49196]
[1762531489055,0.49196,3295.3,3295.2,0.00455476]
[1762531489757,1.05466,3295.3,3295.2,0.00455476]
[1762531491153,0.49196,3295.3,3295.2,0.82493476]
[1762531492052,0.49195,3295.4,3295.3,0.49194]
[1762531492358,0.49196,3295.3,3295.2,0.33295476]
[1762531492557,0.49196,3295.3,3295.2,0.82493476]
[1762531493058,0.49196,3295.3,3295.2,0.00455476]
[1762531493353,0.49202,3294.9,3294.8,3.2078]
[1762531493558,1.05472,3294.9,3294.8,3.2078]
[1762531493756,0.49214,3294.2,3294.1,0.49213]
[1762531494055,2.699,3295.4,3294.6,0.3284]
[1762531494056,0.49198,3295.3,3294.6,0.3284]
[1762531494256,3.2078,3295.6,3295.2,0.3284]
[1762531494654,0.49196,3295.3,3295.2,0.3284]
[1762531495954,0.49198,3295.2,3295.1,0.00455476]
[1762531496155,3.69978,3295.2,3295.1,0.00455476]
[1762531497358,3.2078,3295.2,3295.1,0.00455476]
[1762531497662,3.69978,3295.2,3295.1,0.59725476]
[1762531497860,3.2078,3295.2,3295.1,1.08924476]
[1762531498457,3.2078,3295.2,3295.1,2.17811752]
[1762531498962,0.49192,3295.6,3295.5,0.49192]
[1762531499163,0.49192,3295.6,3295.5,1.08462]
[1762531499460,3.21038513,3296.0,3295.5,1.08462]
[1762531499461,3.21038513,3296.0,3295.9,1.08457]
[1762531499960,0.49187,3295.9,3295.8,0.345]
[1762531500657,3.21038513,3296.0,3295.8,0.345]
[1762531500861,0.49187,3295.9,3295.8,0.83689]
[1762531501061,0.49187,3295.9,3295.8,0.345]
[1762531501458,0.00258513,3296.0,3295.8,0.345]
[1762531501658,0.49187,3295.9,3295.8,0.345]
[1762531502360,0.49187,3295.9,3295.8,1.42959]